Cogmind - Beta 11.1 @@@ ROGUE MODE // 2022.05.22 @ 22:51:28 Player: DDRAGON Result: Destroyed by S-27 Virus with Autogun Performance ------------- Evolutions (4) 2000 Regions Visited (6) 1200 Robots Destroyed (50) 250 Value Destroyed (1614) 1614 Prototype IDs (4) 80 Alien Tech Used (0) 0 Bonus (0) 0 TOTAL SCORE: 5144 Bonus ------- None Cogmind --------- Core Integrity 0/850 Matter 177/300 Energy 14/100 System Corruption 7% Temperature Cool (0) Movement Core (200) Ox3 Location -6/Factory Parts ------- > --- POWER (1) -------- (None) > --- PROPULSION (6) --- (None) > --- UTILITY (5) ------ Advanced Terrain Scan Processor Hacking Suite > --- WEAPON (3) ------- Gatling Laser Heavy Particle Cannon > --- INVENTORY (5) ---- Armored Leg Faulty Cooled Aerolev Unit Peak State ------------ > --- POWER ------------ Deuterium Engine > --- PROPULSION ------- Aluminum Leg Aluminum Leg Improved Aluminum Leg Titanium Leg Titanium Leg > --- UTILITY ---------- Medium Storage Unit Compact Matter Pod Kinecellerator Hacking Suite > --- WEAPON ----------- Plasma Cannon Flak Gun Flak Gun > --- INVENTORY -------- Light Nuclear Core Improved Sensor Array Hardened Light Armor Plating Hardened Light Armor Plating Hacking Suite Beamcaster Heavy Ion Cannon Minigun Grenade Launcher [Rating: 38] Favorites ----------- Power Light Ion Engine Engine Light Ion Engine Power Core Light Nuclear Core Propulsion Aluminum Leg Leg Aluminum Leg Wheel Wheel Hover Unit Hover Unit Utility Hacking Suite Device Reaction Control System Storage Medium Storage Unit Processor Advanced Terrain Scan Processor Hackware Hacking Suite Protection Medium Armor Plating Weapon Heavy Ion Cannon Energy Gun Beam Rifle Energy Cannon Heavy Ion Cannon Ballistic Gun Flak Gun Ballistic Cannon Advanced Assault Cannon Launcher Grenade Launcher Build | -11 -10 -9 -9 -8 -7 -6 ------- Run | Scr Mat Mat Min Mat Fac Fac Slots Evolved 8 | . . 2 . 2 2 2 Power . | . . . . . . . Propulsion 4 | . . 2 . . 1 1 Utility 3 | . . . . 2 . 1 Weapon 1 | . . . . . 1 . Parts Attached 106 | 6 4 23 14 28 22 9 Power 11 | 1 . 2 1 4 3 . Engine 6 | 1 . 2 1 2 . . Core 5 | . . . . 2 3 . Reactor . | . . . . . . . Propulsion 49 | 2 1 10 8 18 5 5 Treads . | . . . . . . . Leg 36 | 2 1 4 4 18 5 2 Wheel 10 | . . 4 4 . . 2 Hover 3 | . . 2 . . . 1 Flight . | . . . . . . . Utility 21 | 1 2 5 3 5 4 1 Device 4 | . . . 1 2 1 . Storage 7 | 1 2 . 2 2 . . Processor 2 | . . 1 . . . 1 Hackware 4 | . . 2 . 1 1 . Protection 4 | . . 2 . . 2 . Artifact . | . . . . . . . Weapon 25 | 2 1 6 2 1 10 3 Energy Gun 6 | 1 . 2 . 1 1 1 Energy Cannon 5 | . . . 1 . 2 2 Ballistic Gun 9 | 1 . 3 . . 5 . Ballistic Cannon 1 | . . . 1 . . . Launcher 4 | . 1 1 . . 2 . Special Weapon . | . . . . . . . Impact Weapon . | . . . . . . . Slashing Weapon . | . . . . . . . Piercing Weapon . | . . . . . . . Special Melee Weapon . | . . . . . . . Unidentified Prototypes 2 | . . . . 1 . 1 Parts Lost 41 | . . 12 1 1 22 5 Power 5 | . . 2 . 1 2 . Propulsion 18 | . . 7 . . 8 3 Utility 9 | . . 2 1 . 5 1 Weapon 9 | . . 1 . . 7 1 Highest Loss Streak 5 | . . 4 1 1 5 2 To Critical Strikes . | . . . . . . . Average Slot Usage (%) 79 | . 97 79 93 97 83 24 Engine 6 | . 14 6 11 7 4 . Leg 22 | . 28 15 16 35 31 2 Wheel 7 | . . 16 22 . . 2 Device 4 | . . . 9 8 3 . Storage 11 | . 26 12 2 17 12 3 Hackware 4 | . . . . 8 7 6 Protection 2 | . . 5 9 . 1 . Energy Gun 1 | . 1 5 . . 1 . Energy Cannon 5 | . . . 10 9 5 3 Ballistic Gun 5 | . 14 11 . . 9 . Ballistic Cannon 3 | . . . 10 8 . . Launcher 1 | . 12 2 . . . . Naked Turns . | . . . . . . . Heaviest Build 56 | 14 52 56 29 35 39 18 Greatest Support 69 | 20 20 52 40 64 69 56 Greatest Overweight (x) 17 | . 2 17 2 . 3 5 Average Overweight (x) . | . . 1 . . . 1 Largest Inventory Capacity 20 | 8 20 20 10 10 10 10 Average Capacity 10 | 6 10 16 5 9 10 7 Most Carried 10 | 3 8 8 6 10 10 3 Average Carried 5 | 1 6 5 4 7 6 . Final Capacity 20 | 8 20 5 10 10 10 5 Final Carried 8 | 3 8 5 6 8 . 2 Class Distribution -------------------- 54% | Mutant 32% | Scavenger-Mutant 9% | Gunner Dominant Class ---------------- Mutant | -10/Materials Mutant | -9/Materials Scavenger-Mutant | -9/Mines Scavenger-Mutant | -8/Materials Gunner | -7/Factory Mutant | -6/Factory Resources | -11 -10 -9 -9 -8 -7 -6 ----------- Run | Scr Mat Mat Min Mat Fac Fac Matter Collected 1811 | 138 76 282 426 410 307 172 Remotely . | . . . . . . . Salvage Created 1452 | . 122 267 114 241 638 70 Parts 94 | . 8 19 14 17 35 1 Haulers Intercepted . | . . . . . . . Recyclers Shooed 1 | . 1 . . . . . Parts Field Recycled . | . . . . . . . Retrieved Matter . | . . . . . . . Parts Self-Destructed . | . . . . . . . Prevented . | . . . . . . . Kills | -11 -10 -9 -9 -8 -7 -6 ------- Run | Scr Mat Mat Min Mat Fac Fac Combat Hostiles Destroyed 38 | . 5 6 2 8 16 1 Guns 14 | . 2 5 . . 7 . Cannons 15 | . . . 2 8 4 1 AOE 9 | . 3 1 . . 5 . Classes Destroyed 12 | . 1 4 3 1 3 . Worker 6 | . . 1 3 1 1 . Builder 3 | . . . . . 3 . Tunneler 2 | . . . 2 . . . Watcher 2 | . . 1 . 1 . . Swarmer 8 | . . . . 5 3 . Grunt 18 | . 5 3 . 1 8 1 Duelist 2 | . . 1 . 1 . . Sentry 6 | . . 2 . 1 3 . Demolisher 1 | . . . 1 . . . Hunter 1 | . . . . . 1 . Programmer 1 | . . . . . 1 . Assembled 1 | . . . 1 . . . Best Kill Streak 10 | . 3 3 2 4 10 1 Combat Bots Only 7 | . 3 2 1 3 7 1 Max Kills in Single Turn 2 | . 2 1 2 2 2 1 Gunslinging . | . . . . . . . Exploded 2 | . 2 1 . . 1 . Melee . | . . . . . . . Uniques/NPCs Destroyed . | . . . . . . . Combat | -11 -10 -9 -9 -8 -7 -6 -------- Run | Scr Mat Mat Min Mat Fac Fac Damage Taken 7486 | . 225 1297 361 680 3067 1856 Core 2022 | . 47 246 114 88 664 863 Absorbed by Shields . | . . . . . . . Regen/Repaired (Parts) 291 | . . . . 291 . . Core Remaining (%) 56 | 100 81 . 10 84 5 . Volleys Fired 138 | . 19 36 9 27 44 3 Largest 3 | . 2 2 2 2 3 1 Hottest 178 | . 50 79 113 113 178 75 Shots Fired 261 | . 24 57 13 54 110 3 Gun 136 | . 18 52 1 . 65 . Cannon 105 | . . . 12 54 36 3 Launcher 20 | . 6 5 . . 9 . Special . | . . . . . . . Kinetic 152 | . 18 48 4 27 55 . Thermal 87 | . . 4 9 27 46 1 Explosive 20 | . 6 5 . . 9 . Electromagnetic 2 | . . . . . . 2 Robot Hit Streak 9 | . 3 7 8 7 9 3 Robot Miss Streak 6 | . 3 4 1 4 6 . Penetration Max . | . . . . . . . Secondary Targets 2 | . . 1 . . 1 . Max Gunslinging Chain 1 | . . 1 . . 1 . Shots Hit Robots 157 | . 10 36 11 28 69 3 Core Hits 115 | . 14 13 8 13 65 2 Critical Kills . | . . . . . . . Critical Parts Destroyed . | . . . . . . . Critical Strikes 3 | . . 1 1 . 1 . Burn 2 | . . 1 . . 1 . Blast 1 | . . . 1 . . . Melee Attacks . | . . . . . . . Impact . | . . . . . . . Slashing . | . . . . . . . Piercing . | . . . . . . . Sneak Attacks . | . . . . . . . Combat Hostiles . | . . . . . . . Follow-up Attacks . | . . . . . . . Damage Inflicted 4544 | . 362 728 355 872 2134 93 Guns 1481 | . 112 496 14 . 859 . Cannons 1872 | . . . 327 830 622 93 Explosions 1073 | . 247 187 . . 639 . Melee . | . . . . . . . Ramming 118 | . 3 45 14 42 14 . Kinetic 1864 | . 112 466 110 397 779 . Thermal 1421 | . . 30 231 433 702 25 Explosive 1073 | . 247 187 . . 639 . Electromagnetic 68 | . . . . . . 68 Impact . | . . . . . . . Slashing . | . . . . . . . Piercing . | . . . . . . . Highest Corruption 7 | . . 2 2 . . 7 Average Corruption 2 | . . 2 2 . . 3 Corruption Purged . | . . . . . . . Corruption Blocked . | . . . . . . . Effects 9 | . . 1 3 . . 5 Message Errors 1 | . . . 1 . . . Matter Fused 3 | . . . . . . 3 Heat Flow Errors 3 | . . 1 . . . 2 Energy Discharges 1 | . . . 1 . . . Data Loss (minor) 1 | . . . 1 . . . Overload Shots . | . . . . . . . Overflow Damage 72 | . . 5 6 35 26 . Projectiles 49 | . . . 6 35 8 . Explosions 18 | . . . . . 18 . Melee 5 | . . 5 . . . . Knockbacks 9 | . . 1 1 7 . . Impact 1 | . . 1 . . . . Kinetic 7 | . . . 1 6 . . Secondary 1 | . . . . 1 . . Self-Inflicted Damage 44 | . . 32 . . 12 . Shots 2 | . . 1 . . 1 . Rammed 3 | . . 3 . . . . Targets Rammed 16 | . 1 3 3 6 3 . Kicked 13 | . 1 . 3 6 3 . Crushed . | . . . . . . . Highest Temperature 654 | . 21 220 132 284 654 327 Average Temperature 136 | . 10 45 46 89 195 148 Received Heat Transfer 2367 | . 126 456 . 252 1158 375 Effects 23 | . . . . . 23 . Shutdowns 4 | . . . . . 4 . Energy Bleed 6 | . . . . . 6 . Interference 4 | . . . . . 4 . Matter Decay 4 | . . . . . 4 . Short Circuit 2 | . . . . . 2 . Damage (minor) 2 | . . . . . 2 . Damage (major) 1 | . . . . . 1 . Siege Activations . | . . . . . . . Robots Corrupted . | . . . . . . . Combat Hostiles . | . . . . . . . Parts Fried . | . . . . . . . Impact Corruptions 1 | . . 1 . . . . Robots Melted . | . . . . . . . Combat Hostiles . | . . . . . . . Parts Melted 2 | . . . . 1 1 . Heat Transferred 2532 | . . 148 333 592 1422 37 Parts Sabotaged . | . . . . . . . Parts Stolen . | . . . . . . . Parts Stripped . | . . . . . . . Power Chain Reactions . | . . . . . . . Missiles Intercepted . | . . . . . . . Alert | -11 -10 -9 -9 -8 -7 -6 ------- Run | Scr Mat Mat Min Mat Fac Fac Peak Influence 318 | . 192 302 96 296 318 100 Initial 80 | . . 80 46 9 6 25 Average 94 | . 96 150 55 99 109 43 Maximum Alert Level 1 | . . 1 . 1 1 . Low Security (%) 85 | 100 100 74 100 85 71 100 Level 1 14 | . . 25 . 14 28 . Level 2 . | . . . . . . . Level 3 . | . . . . . . . Level 4 . | . . . . . . . Level 5 . | . . . . . . . High Security . | . . . . . . . Max Security . | . . . . . . . Squads Dispatched 12 | . 1 . . . 9 2 Investigation 1 | . 1 . . . . . Extermination 2 | . . . . . 1 1 Reinforcement 6 | . . . . . 5 1 Assault . | . . . . . . . Garrison 3 | . . . . . 3 . Intercept . | . . . . . . . Searches Triggered . | . . . . . . . Construction Impeded 2 | . . . . . 2 . Haulers Reinforced 1 | . . . . . 1 . Active Scanning Responses . | . . . . . . . Cargo Convoy Interrupts . | . . . . . . . Stealth | -11 -10 -9 -9 -8 -7 -6 --------- Run | Scr Mat Mat Min Mat Fac Fac Distress Signals 4 | . . 2 . 2 . . Communications Jammed . | . . . . . . . Distress Signals . | . . . . . . . Times Spotted 91 | . 7 12 5 21 31 15 Peak Tracking Total 11 | . 6 4 7 7 11 9 Tactical Retreats 13 | . . 2 1 4 2 4 Traps | -11 -10 -9 -9 -8 -7 -6 ------- Run | Scr Mat Mat Min Mat Fac Fac Traps Triggered 1 | . 1 . . . . . Indirectly . | . . . . . . . Trap Hack Attempts . | . . . . . . . Triggered . | . . . . . . . Disarmed . | . . . . . . . Reprogrammed . | . . . . . . . Reused . | . . . . . . . Traps Extracted . | . . . . . . . Installed . | . . . . . . . Triggered . | . . . . . . . Machines | -11 -10 -9 -9 -8 -7 -6 ---------- Run | Scr Mat Mat Min Mat Fac Fac Machines Disabled 9 | . 2 4 . 2 1 . Max in Single Turn 1 | . 1 1 . 1 1 . Garrison Access 1 | . . . . 1 . . Machines Sabotaged . | . . . . . . . Garrisons Compromised . | . . . . . . . Overloaded Fab Kills . | . . . . . . . Hacking | -11 -10 -9 -9 -8 -7 -6 --------- Run | Scr Mat Mat Min Mat Fac Fac Machines Accessed 13 | . . 2 1 5 3 2 Terminals 7 | . . 1 . 3 2 1 Fabricators 1 | . . . . . 1 . Repair Stations 1 | . . . . 1 . . Recycling Units 2 | . . 1 . . . 1 Scanalyzers . | . . . . . . . Garrison Access 1 | . . . . 1 . . Total Hacks 30 | . . 4 1 17 5 3 Successful 22 | . . 3 1 12 3 3 Failed 8 | . . 1 . 5 2 . Catastrophic . | . . . . . . . Database Lockouts . | . . . . . . . Manual . | . . . . . . . Terminals 11 | . . 1 . 6 3 1 Fabricators 2 | . . . . . 2 . Repair Stations 8 | . . . . 8 . . Recycling Units 5 | . . 3 . . . 2 Scanalyzers . | . . . . . . . Garrison Access 3 | . . . . 3 . . Terminal Hacks 8 | . . 1 1 3 2 1 Prototype ID Bank 1 | . . . . 1 . . Open Door 1 | . . . 1 . . . Open DSF 2 | . . . . . 1 1 Emergency Access Points 2 | . . 1 . 1 . . Unreport Threat 1 | . . . . 1 . . Locate Traps 1 | . . . . . 1 . Fabricator Hacks 1 | . . . . . 1 . Network Status 1 | . . . . . 1 . Repair Station Hacks 8 | . . . . 8 . . Scan Component 5 | . . . . 5 . . Repair 3 | . . . . 3 . . Recycling Unit Hacks 4 | . . 2 . . . 2 Process 1 | . . . . . . 1 Report Inventory 2 | . . 1 . . . 1 Retrieve Components 1 | . . 1 . . . . Scanalyzer . | . . . . . . . Garrison Access Hacks 1 | . . . . 1 . . Seal Access 1 | . . . . 1 . . Unauthorized Hacks . | . . . . . . . Terminals . | . . . . . . . Fabricators . | . . . . . . . Repair Stations . | . . . . . . . Recycling Units . | . . . . . . . Scanalyzers . | . . . . . . . Garrison Access . | . . . . . . . Data Cores Recovered . | . . . . . . . Used . | . . . . . . . Hacking Detections 8 | . . 2 . 2 3 1 Full Trace Events 1 | . . 1 . . . . Feedback Events . | . . . . . . . Feedback Blocked . | . . . . . . . Robot Schematics Acquired . | . . . . . . . Robots Built . | . . . . . . . Authchips . | . . . . . . . Time . | . . . . . . . Total Robot Build Rating . | . . . . . . . Part Schematics Acquired . | . . . . . . . Parts Built . | . . . . . . . Authchips . | . . . . . . . Time . | . . . . . . . Total Part Build Rating . | . . . . . . . Parts Repaired 3 | . . . . 3 . . Time 78 | . . . . 78 . . Parts Recycled . | . . . . . . . Recycled Matter . | . . . . . . . Retrieved Matter . | . . . . . . . Retrieved Components 7 | . . 7 . . . . Parts Scanalyzed . | . . . . . . . Part Schematics Acquired . | . . . . . . . Parts Damaged . | . . . . . . . Bothacking | -11 -10 -9 -9 -8 -7 -6 ------------ Run | Scr Mat Mat Min Mat Fac Fac Used RIF Installer . | . . . . . . . Robots Hacked . | . . . . . . . Non-combat . | . . . . . . . Combat . | . . . . . . . Robot Hacks Applied . | . . . . . . . Relay Couplers Released . | . . . . . . . Fabnet Peak Effective % . | . . . . . . . Robots Rewired . | . . . . . . . Allies Hacked . | . . . . . . . Hacks Repelled . | . . . . . . . Allies | -11 -10 -9 -9 -8 -7 -6 -------- Run | Scr Mat Mat Min Mat Fac Fac Total Allies 2 | . . . 2 . . . Largest Group 2 | . . . 2 . . . Highest-Rated Group 42 | . . . 42 . . . Highest-Rated Ally 31 | . . . 31 . . . Total Orders . | . . . . . . . Ally Attacks 2 | . . . 2 . . . Total Damage 42 | . . . 42 . . . Kills . | . . . . . . . Allies Corrupted . | . . . . . . . Allies Melted . | . . . . . . . Intel | -11 -10 -9 -9 -8 -7 -6 ------- Run | Scr Mat Mat Min Mat Fac Fac Robot Analysis Total . | . . . . . . . Derelict Logs Recovered 1 | . . . 1 . . . Drone Launches . | . . . . . . . Drone Recoveries . | . . . . . . . Exploration | -11 -10 -9 -9 -8 -7 -6 ------------- Run | Scr Mat Mat Min Mat Fac Fac Turns Passed 3933 | 89 220 743 614 859 854 554 Spaces Moved 2317 | 69 114 390 414 484 541 305 Core 94 | 8 . 9 . . 4 73 Treads . | . . . . . . . Legs 1669 | 61 114 100 220 484 537 153 Wheels 537 | . . 264 194 . . 79 Hover 17 | . . 17 . . . . Flight . | . . . . . . . Fastest Speed 50 | 50 120 80 80 120 120 100 Average Speed 134 | 111 145 151 123 123 124 162 Slowest Speed 900 | 120 260 900 260 126 200 300 Overloaded Moves . | . . . . . . . Propulsion Burnouts . | . . . . . . . Robots Hopped . | . . . . . . . Cave-ins Triggered . | . . . . . . . Exploration Rate (%) 30 | 4 25 33 78 39 22 12 Regions Visited 6 Branch Regions 1 Pre-discovered Areas 1 | . . . 1 . . . Known Exits Taken . | . . . . . . . Unknown Exits Taken 6 | 1 1 1 1 1 1 . Scrap Searched 1 | . . . 1 . . . Spaces Dug 5 | . 5 . . . . . Terrain Destroyed 77 | . 15 18 . 18 26 . Melee . | . . . . . . . Projectile 18 | . . . . 18 . . AOE 59 | . 15 18 . . 26 . Terrain Rammed . | . . . . . . . Walls Destroyed . | . . . . . . . Machines Disabled . | . . . . . . . Actions | -11 -10 -9 -9 -8 -7 -6 --------- Run | Scr Mat Mat Min Mat Fac Fac Total 2901 | 78 145 490 503 691 634 360 Wait 213 | . . 9 45 115 8 36 Move 2311 | 68 113 389 413 483 540 305 Hop . | . . . . . . . Pick Up 44 | 4 6 12 6 10 2 4 Fast Attach 44 | 5 . 9 9 6 9 6 Attach 42 | 1 2 13 3 9 11 3 Detach 25 | . 1 9 2 4 7 2 Swap 20 | . 2 1 2 13 2 . Drop 48 | . 1 9 11 18 8 1 Fire 138 | . 19 36 9 27 44 3 Melee . | . . . . . . . Ram 3 | . . 3 . . . . Kick 13 | . 1 . 3 6 3 . Crush . | . . . . . . . Escape Stasis . | . . . . . . . Rewire . | . . . . . . . Trap . | . . . . . . . Miscellaneous . | . . . . . . . Route ------- -11/Scrapyard -10/Materials -9/Materials -9/Mines -8/Materials -7/Factory (discovered 2 exits: *Fac / Low) -6/Factory History --------- Turn | Location | Event 50 | -11/Scrapyard | Discovered new exit (range 12) 90 | -11/Scrapyard | Entered Materials 271 | -10/Materials | Discovered new exit (range 15) 310 | -10/Materials | Entered another Materials area 310 | -9/Materials | Evolved 2 slots: Propulsion x2 332 | -9/Materials | Build established: Mutant 492 | -9/Materials | Lost 4 parts (1p3n) 615 | -9/Materials | Core integrity fell below 50% 617 | -9/Materials | Lost 3 parts (1p1u1w) 1034 | -9/Materials | Discovered new exit (range 14) 1053 | -9/Materials | Entered Mines 1059 | -9/Mines | Met a Derelict who couldn't figure out how to use a Trap Extractor 1168 | -9/Mines | Assembled infested the area 1206 | -9/Mines | Learned location of Storage (-8) 1568 | -9/Mines | Discovered new exit (range 13) 1594 | -9/Mines | Core integrity fell below 20% 1667 | -9/Mines | Entered Materials 1667 | -8/Materials | Evolved 2 slots: Utility x2 1670 | -8/Materials | Build established: Scavenger-Mutant 1792 | -8/Materials | Repaired Aluminum Leg 1818 | -8/Materials | Repaired Aluminum Leg 1862 | -8/Materials | Repaired Med. Storage Unit 2470 | -8/Materials | Build established: Mutant 2521 | -8/Materials | Discovered new exit (range 5) 2526 | -8/Materials | Entered Factory 2526 | -7/Factory | Evolved 2 slots: Propulsion x1, Weapon x1 2527 | -7/Factory | Identified exit to Lower Caves 3057 | -7/Factory | Garrison activated, responded to threat 3118 | -7/Factory | Destroyed 7 combat bots 3128 | -7/Factory | Lost 3 parts (1n1u1w) 3206 | -7/Factory | Lost 5 parts (2n3w) 3275 | -7/Factory | Lost 5 parts (1p1n2u1w) 3305 | -7/Factory | Core integrity fell below 50% 3331 | -7/Factory | Lost 3 parts (1p1n1w) 3360 | -7/Factory | Discovered new exit (range 16) 3362 | -7/Factory | Core integrity fell below 20% 3380 | -7/Factory | Entered another Factory area 3380 | -6/Factory | Evolved 2 slots: Propulsion x1, Utility x1 3405 | -6/Factory | Lost 4 parts (3n1u) 3814 | -6/Factory | Core integrity fell below 50% 3920 | -6/Factory | Core integrity fell below 20% 3934 | -6/Factory | Destroyed by S-27 Virus with Autogun Last Messages --------------- 03814_ Assembly Bed disabled. 03815_ Acquired Wheel. 03817_ K-01 Serf collects debris. 03818_ Dropped Wheel. 03819_ P-60 Hacker resets K-01 Serf, system corruption cleaned. 03821_ K-01 Serf collects debris. 03873_ System corrupted: Heat flow error (+284). 03875_ Acquired Prototype Hover Unit. 03878_ Identified Cld. Aerolev Unit. 03878_ Malfunction: Heat surge (+265). 03899_ System corrupted: Heat flow error (+134). 03905_ K-01 Serf collects debris. 03910_ Arm. Huge Wheel destroyed. 03915_ System corrupted: Matter fused (-10). 03915_ Acquired Hvy. Particle Cannon. 03920_ Destroyed VTOL Module. 03931_ Acquired Gatling Laser. 03933_ System corrupted: Matter fused (-9). 03933_ Arm. Huge Wheel destroyed. 03933_ Critical hit (Burn: +37). Map ----- +----------------------------------------------------+ | ?????????????????????????????????????????????????? | | ?????????????????????????????????????????????????? | | ?????????????????????????????????????????????????? | | ?????????????????????????????????????????????????? | | ?????????????????????????????????????????????????? | | ?????????????????????????????????????????????????? | | ?????????????????????????????????????????????????? | | ?????????????????????????????????????????????????? | | ?????????????????????????????????????????????????? | | ?????????????????????????????????????????????????? | | ?????????????????????????????????????????????????? | | ?????????????????????????????????????????????????? | | ?????????????????????????????????????????????????? | | ?????????????????????????????????????????????????? | | ?????????????????????????????????????????????????? | | ?????????????????????????????????????????????????? | | ?????????????????????????????????????????????????? | | ?????????????????????????????????????????????????? | | ?????????????????????????????????????????????????? | | ?????????????????????????????????????????????????? | | ?????????????????????????????????????????????????? | | ?????????????????????????????????????????????????? | | ?????????????????????????????????????????????????? | | ?????????????????????????????????????????????????? | | ????????????????????############?????????????????? | | ????????????????????# @ #?????????????????? | | ????????????????????#! #?????????????????? | | ????????????????????# """" #?????????????????? | | ????????????????????#] """" #?????????????????? | | ????????????????????# """" #?????????????????? | | ????????????????????# """" #?????????????????? | | ????????????????????# """" ############??????? | | ????????????????????# ! p"""" # #??????? | | ????????????????????# gs """" # #??????? | | ######??????????????# # #??????? | | #####################+##### #??????? | | # # #??????? | | # # #??????? | | # # #??????? | | / + #??????? | | # # #??????? | | # # #??????? | | # # #??????? | | # #####+########### # #??????? | | # # ## # #??????? | | # # """"""""" ## # #??????? | | # # ## # #??????? | | # # """"""""" ! ## ############??????? | | # # / #?????????????????? | | # # ## #?????????????????? | +----------------------------------------------------+ Best States ------------- Heat Dissipation 37 Energy Generation 14 Energy Capacity 275 Matter Stores 450 Matter Capacity 550 Sight Range 16 Robot Scan Range 15 Terrain Scan Density 210 Armor Coverage 225 Evasion (%) 59 Targeting Accuracy 8 Kinecelleration 30 Offensive Hacking 20 Trap Extractor Capacity 6 Item Schematics ----------------- None Robot Schematics ------------------ None Fabricated ------------ Nothing Alien Tech Used ----------------- None Achievements -------------- None Challenges ------------ None Game ------ Seed GodAlphaFilter Manual? 0 Play Time 00:59:12 Cumulative 13.0 hours Start 2022.05.22 @ 21:56:24 End 2022.05.22 @ 22:51:28 Sessions 1 Manual Loads 0 Difficulty Rogue Special Mode None Game No. 19 Rogue 19 Adventurer 0 Explorer 0 Win Type - Total 0 Types 0/0/0/0/0/0/0/0/0 Lore% 12 Gallery% 24 Achievement% 16 Wizard Run 0 Options --------- ASCII 0 Keyboard 1 Movement Numpad Keybinds 0 Fullscreen 1 Font 24/Proggy Map View 76x50 Tactical HUD 1 Map Filters NONE Filters NONE Steam 1 RUN: 049e2dc7-4a85-454b-b825-1008571bd28f